Cogmind - Beta 10.2 @@@ ROGUE MODE // 2021.10.26 @ 01:12:53 Player: grafoo Result: Destroyed by Y-45 Defender with Heavy Assault Rifle Performance ------------- Evolutions (1) 500 Regions Visited (2) 400 Robots Destroyed (20) 100 Value Destroyed (468) 468 Prototype IDs (0) 0 Alien Tech Used (0) 0 Bonus (0) 0 TOTAL SCORE: 1468 Bonus ------- None Cogmind --------- Core Integrity 0/400 Matter 300/300 Energy 100/100 System Corruption 6% Temperature Cool (9) Movement Core (50) Location -9/Materials Parts ------- > --- POWER (2) -------- (None) > --- PROPULSION (3) --- (None) > --- UTILITY (2) ------ (None) > --- WEAPON (2) ------- (None) > --- INVENTORY (4) ---- Reinforced Ion Engine Light Armor Plating Shield Generator Rocket Launcher Peak State ------------ > --- POWER ------------ Ion Engine > --- PROPULSION ------- Improved Treads Aluminum Leg Improved Aluminum Leg > --- UTILITY ---------- Heat Sink Medium Armor Plating > --- WEAPON ----------- EM Shotgun > --- INVENTORY -------- Large Storage Unit [Rating: 11] Favorites ----------- Power Ion Engine Engine Ion Engine Propulsion Aluminum Leg Treads Improved Treads Leg Aluminum Leg Wheel Wheel Hover Unit Hover Unit Utility Large Storage Unit Device Heat Sink Storage Large Storage Unit Processor Visual Processing Unit Protection Medium Armor Plating Weapon Light Assault Rifle Energy Gun EM Shotgun Ballistic Gun Light Assault Rifle Build | -11 -10 -9 ------- Run | Scr Mat Mat Slots Evolved 2 | . . 2 Power 1 | . . 1 Propulsion 1 | . . 1 Utility . | . . . Weapon . | . . . Parts Attached 37 | 5 14 18 Power 6 | 1 3 2 Engine 6 | 1 3 2 Core . | . . . Reactor . | . . . Propulsion 8 | 2 2 4 Treads 1 | . . 1 Leg 4 | . 1 3 Wheel 2 | 2 . . Hover 1 | . 1 . Flight . | . . . Utility 14 | . 7 7 Device 5 | . 3 2 Storage 3 | . 2 1 Processor 1 | . 1 . Hackware . | . . . Protection 5 | . 1 4 Artifact . | . . . Weapon 9 | 2 2 5 Energy Gun 6 | 2 . 4 Energy Cannon . | . . . Ballistic Gun 3 | . 2 1 Ballistic Cannon . | . . . Launcher . | . . . Special Weapon . | . . . Impact Weapon . | . . . Slashing Weapon . | . . . Piercing Weapon . | . . . Special Melee Weapon . | . . . Unidentified Prototypes . | . . . Parts Lost 17 | . 1 16 Power 2 | . . 2 Propulsion 4 | . . 4 Utility 4 | . . 4 Weapon 7 | . 1 6 Highest Loss Streak 10 | . 1 10 Average Slot Usage (%) 82 | . 82 83 Engine 14 | . 11 16 Treads 1 | . . 1 Leg 17 | . 3 25 Wheel 6 | . 18 . Device 5 | . 9 2 Storage 6 | . 2 8 Processor 1 | . 5 . Protection 7 | . 2 9 Energy Gun 13 | . 13 14 Ballistic Gun 7 | . 13 4 Naked Turns 36 | . . 36 Heaviest Build 35 | 7 26 35 Greatest Support 30 | 20 20 30 Greatest Overweight (x) 6 | . 2 6 Average Overweight (x) . | . . . Largest Inventory Capacity 10 | 4 10 10 Average Capacity 7 | 4 5 8 Most Carried 7 | 2 4 7 Average Carried 3 | . 1 3 Final Capacity 10 | 4 10 4 Final Carried 4 | . 2 4 Class Distribution -------------------- 56% | Scavenger-Mutant 43% | Mutant Dominant Class ---------------- Mutant | -10/Materials Scavenger-Mutant | -9/Materials Resources | -11 -10 -9 ----------- Run | Scr Mat Mat Matter Collected 611 | 247 98 266 Remotely . | . . . Salvage Created 689 | 43 155 491 Parts 40 | 1 17 22 Haulers Intercepted . | . . . Recyclers Shooed 2 | . 2 . Parts Field Recycled . | . . . Retrieved Matter . | . . . Parts Self-Destructed . | . . . Prevented . | . . . Kills | -11 -10 -9 ------- Run | Scr Mat Mat Combat Hostiles Destroyed 14 | 1 6 7 Guns 14 | 1 6 7 Classes Destroyed 6 | 1 2 3 Recycler 1 | . . 1 Watcher 5 | . 2 3 Swarmer 5 | . 5 . Grunt 7 | 1 1 5 Brawler 1 | . . 1 Sentry 1 | . . 1 Best Kill Streak 3 | 1 3 2 Combat Bots Only 3 | 1 3 2 Max Kills in Single Turn 2 | 1 2 1 Gunslinging 1 | . 1 . Exploded . | . . . Melee . | . . . Uniques/NPCs Destroyed . | . . . Combat | -11 -10 -9 -------- Run | Scr Mat Mat Damage Taken 2074 | 24 340 1710 Core 537 | 24 112 401 Absorbed by Shields 6 | . . 6 Core Remaining (%) 67 | 90 45 . Volleys Fired 122 | 3 44 75 Largest 2 | 2 2 2 Hottest 90 | 90 90 85 Shots Fired 191 | 6 80 105 Gun 191 | 6 80 105 Cannon . | . . . Launcher . | . . . Special . | . . . Kinetic 81 | . 26 55 Thermal 59 | 3 33 23 Explosive . | . . . Electromagnetic 51 | 3 21 27 Robot Hit Streak 9 | 6 6 9 Robot Miss Streak 5 | . 5 3 Penetration Max . | . . . Secondary Targets 3 | . 2 1 Max Gunslinging Chain 1 | . 1 1 Shots Hit Robots 110 | 6 36 68 Core Hits 38 | 2 11 25 Critical Hits . | . . . Critical Kills . | . . . Critical Parts Destroyed . | . . . Melee Attacks . | . . . Impact . | . . . Slashing . | . . . Piercing . | . . . Sneak Attacks . | . . . Combat Hostiles . | . . . Follow-up Attacks . | . . . Damage Inflicted 1089 | 77 395 617 Guns 1056 | 76 363 617 Cannons . | . . . Explosions 24 | . 24 . Melee . | . . . Ramming 9 | 1 8 . Kinetic 415 | . 85 330 Thermal 377 | 37 189 151 Explosive . | . . . Electromagnetic 288 | 39 113 136 Impact . | . . . Slashing . | . . . Piercing . | . . . Highest Corruption 6 | . 1 6 Average Corruption 1 | . 1 4 Corruption Purged . | . . . Effects 7 | . 2 5 Message Errors 2 | . 1 1 Matter Fused 1 | . . 1 Energy Discharges 1 | . 1 . Targeting Errors 2 | . . 2 Weapon Failures 1 | . . 1 Overload Shots . | . . . Overflow Damage . | . . . Projectiles . | . . . Explosions . | . . . Melee . | . . . Knockbacks . | . . . Impact . | . . . Kinetic . | . . . Secondary . | . . . Self-Inflicted Damage 4 | . 4 . Shots . | . . . Rammed 2 | 1 1 . Targets Rammed 2 | 1 1 . Kicked . | . . . Crushed . | . . . Highest Temperature 410 | 102 410 127 Average Temperature 115 | 52 171 36 Received Heat Transfer 806 | 12 30 764 Effects 5 | . 5 . Shutdowns 2 | . 2 . Energy Bleed 2 | . 2 . Short Circuit 1 | . 1 . Siege Activations . | . . . Robots Corrupted . | . . . Combat Hostiles . | . . . Parts Fried 1 | . 1 . Impact Corruptions . | . . . Robots Melted . | . . . Combat Hostiles . | . . . Parts Melted 1 | . 1 . Heat Transferred 1039 | 111 531 397 Parts Sabotaged . | . . . Parts Stolen . | . . . Parts Stripped . | . . . Power Chain Reactions 1 | . 1 . Missiles Intercepted . | . . . Alert | -11 -10 -9 ------- Run | Scr Mat Mat Peak Influence 362 | 20 362 174 Initial 68 | . 13 68 Average 98 | 3 190 56 Maximum Alert Level 1 | . 1 . Low Security (%) 85 | 100 56 100 Level 1 14 | . 43 . Level 2 . | . . . Level 3 . | . . . Level 4 . | . . . Level 5 . | . . . High Security . | . . . Max Security . | . . . Squads Dispatched 3 | . 1 2 Investigation . | . . . Extermination . | . . . Reinforcement 3 | . 1 2 Assault . | . . . Garrison . | . . . Intercept . | . . . Construction Impeded . | . . . Haulers Reinforced . | . . . Stealth | -11 -10 -9 --------- Run | Scr Mat Mat Distress Signals 2 | . 2 . Communications Jammed . | . . . Distress Signals . | . . . Times Spotted 42 | 1 17 24 Peak Tracking Total 5 | 1 4 5 Tactical Retreats 4 | . 4 . Traps | -11 -10 -9 ------- Run | Scr Mat Mat Traps Triggered 5 | . 1 4 Indirectly . | . . . Trap Hack Attempts . | . . . Triggered . | . . . Disarmed . | . . . Reprogrammed . | . . . Reused . | . . . Traps Extracted . | . . . Installed . | . . . Triggered . | . . . Machines | -11 -10 -9 ---------- Run | Scr Mat Mat Machines Disabled . | . . . Max in Single Turn . | . . . Machines Sabotaged . | . . . Garrisons Compromised . | . . . Overloaded Fab Kills . | . . . Fab Network Shutdowns . | . . . Hacking | -11 -10 -9 --------- Run | Scr Mat Mat Machines Accessed 2 | . 2 . Terminals 1 | . 1 . Fabricators . | . . . Repair Stations . | . . . Recycling Units 1 | . 1 . Scanalyzers . | . . . Garrison Access . | . . . Total Hacks 2 | . 2 . Successful 1 | . 1 . Failed 1 | . 1 . Catastrophic . | . . . Database Lockouts . | . . . Manual . | . . . Terminals 1 | . 1 . Fabricators . | . . . Repair Stations . | . . . Recycling Units 1 | . 1 . Scanalyzers . | . . . Garrison Access . | . . . Terminal Hacks 1 | . 1 . Record 1 | . 1 . Fabricator Hacks . | . . . Repair Station Hacks . | . . . Recycling Unit Hacks . | . . . Scanalyzer . | . . . Garrison Access Hacks . | . . . Unauthorized Hacks . | . . . Terminals . | . . . Fabricators . | . . . Repair Stations . | . . . Recycling Units . | . . . Scanalyzers . | . . . Garrison Access . | . . . Data Cores Recovered . | . . . Used . | . . . Hacking Detections 1 | . 1 . Full Trace Events . | . . . Feedback Events . | . . . Feedback Blocked . | . . . Robot Schematics Acquired . | . . . Robots Built . | . . . Matter . | . . . Time . | . . . Total Robot Build Rating . | . . . Part Schematics Acquired . | . . . Parts Built . | . . . Matter . | . . . Time . | . . . Total Part Build Rating . | . . . Parts Repaired . | . . . Time . | . . . Parts Recycled . | . . . Recycled Matter . | . . . Retrieved Matter . | . . . Retrieved Components . | . . . Parts Scanalyzed . | . . . Part Schematics Acquired . | . . . Parts Damaged . | . . . Bothacking | -11 -10 -9 ------------ Run | Scr Mat Mat Used RIF Installer . | . . . Robots Hacked . | . . . Non-combat . | . . . Combat . | . . . Robot Hacks Applied . | . . . Relay Couplers Released . | . . . Robots Rewired . | . . . Allies Hacked . | . . . Hacks Repelled . | . . . Allies | -11 -10 -9 -------- Run | Scr Mat Mat Total Allies . | . . . Largest Group . | . . . Highest-Rated Group . | . . . Highest-Rated Ally . | . . . Total Orders . | . . . Ally Attacks . | . . . Total Damage . | . . . Kills . | . . . Allies Corrupted . | . . . Allies Melted . | . . . Intel | -11 -10 -9 ------- Run | Scr Mat Mat Robot Analysis Total . | . . . Derelict Logs Recovered . | . . . Drone Launches . | . . . Drone Recoveries . | . . . Exploration | -11 -10 -9 ------------- Run | Scr Mat Mat Turns Passed 1437 | 72 483 882 Spaces Moved 818 | 73 314 431 Core 123 | 20 48 55 Treads . | . . . Legs 441 | . 65 376 Wheels 254 | 53 201 . Hover . | . . . Flight . | . . . Fastest Speed 50 | 50 80 50 Average Speed 118 | 71 101 138 Slowest Speed 350 | 80 180 350 Overloaded Moves . | . . . Propulsion Burnouts . | . . . Robots Hopped . | . . . Cave-ins Triggered . | . . . Exploration Rate (%) 26 | 6 40 33 Regions Visited 2 Branch Regions . Pre-discovered Areas . | . . . Known Exits Taken . | . . . Unknown Exits Taken 2 | 1 1 . Scrap Searched . | . . . Spaces Dug . | . . . Terrain Destroyed 3 | . 3 . Melee . | . . . Projectile . | . . . AOE 3 | . 3 . Terrain Rammed . | . . . Walls Destroyed . | . . . Machines Disabled . | . . . Actions | -11 -10 -9 --------- Run | Scr Mat Mat Total 1118 | 86 411 621 Wait 83 | . 11 72 Move 816 | 72 313 431 Hop . | . . . Pick Up 37 | 5 15 17 Fast Attach . | . . . Attach 35 | 5 13 17 Detach 7 | . 3 4 Swap 2 | . 1 1 Drop 14 | . 10 4 Fire 122 | 3 44 75 Melee . | . . . Ram 2 | 1 1 . Kick . | . . . Crush . | . . . Escape Stasis . | . . . Rewire . | . . . Trap . | . . . Miscellaneous . | . . . Route ------- -11/Scrapyard -10/Materials -9/Materials (discovered 2 exits: [*Min x2]) History --------- Turn | Location | Event 2 | -11/Scrapyard | Met Revision 17 49 | -11/Scrapyard | Discovered new exit (range 8) 73 | -11/Scrapyard | Entered Materials 310 | -10/Materials | Build established: Mutant 357 | -10/Materials | Core integrity fell below 50% 545 | -10/Materials | Discovered new exit (range 5) 556 | -10/Materials | Entered another Materials area 556 | -9/Materials | Evolved 2 slots: Power x1, Propulsion x1 768 | -9/Materials | Lost 4 parts (1u3w) 929 | -9/Materials | Discovered new exit (range 15) 1098 | -9/Materials | Build established: Scavenger-Mutant 1274 | -9/Materials | Discovered new exit (range 13) 1370 | -9/Materials | Core integrity fell below 50% 1424 | -9/Materials | Core integrity fell below 20% 1433 | -9/Materials | Lost 10 parts (2p3n2u3w) 1438 | -9/Materials | Destroyed by Y-45 Defender with Heavy Assault Rifle Last Messages --------------- R-06 Scavenger collects Aluminum Leg. ALERT: Hostiles spotted, dispatching reinforcements to Terminal M002. R-06 Scavenger collects Ion Engine. To regain energy, simply wait via the mouse wheel '.', or KP5. Also make sure your per-turn energy generation is a net positive, and consider deactivating power-draining parts if not. Acquired 23 matter. Acquired 30 matter. K-01 Serf collects debris. System corrupted: Matter fused (-6). Lgt. Armor Plating destroyed. System corrupted: Sml. Laser targeting data glitched. K-01 Serf collects debris. Sml. Laser destroyed. Triggered Shock Trap. The floor emits a surge of raw power. System corrupted (+2). K-01 Serf collects debris. ZKNW/7SMP3DI|TFMIGC#% S7EKFX 9N Acquired Rocket Launcher. Map ----- +----------------------------------------------------+ | %!% < + ???????????????????????????? | | %! #????????????????????????????? | | ###*%!! ##+#### #????????????????????????????? | | ??# |"!" # ## #????????????????????????????? | | ??# "|"!""# ## #????????????????????????????? | | ??######### + #????????????????????????????? | | ??????????# ## #????????????????????????????? | | ??????????# ## #?????????? #???????????????? | | ??????????# ## ######## #???????????????? | | ??????????# ## +???????????????? | | ??????????# ## ###?????????????????????? | | ??????????# ## #???????????????????????? | | ??????????####### ##+#######???????????????????? | | ????????????????# # #???????????????????? | | ????????????????+ # """ #???????????????????? | | ????????????????# + """ #???????????????????? | | ????????????????# # """ #???????????????????? | | ????????????????# # #???????????????????? | | ????????????????# # """ #???????????????????? | | ????????????????# # """ #???????????????????? | | ????????????????# # """ #???????????????????? | | ????????????????# # #???????????????????? | | ????????????????# ##+########??????????????????? | | ????????????????# # #??????????????????? | | ????????????????+ # ##?????????????????? | | ????????????????# + @]] Y#?????????????????? | | ????????????????+ # ]] ##?????????????????? | | ????????????????##+###+# ]] #??????????????????? | | ???????????????????????# #??????????????????? | | ???????????????????????########??????????????????? | | ?????????????????????????????????????????????????? | | ?????????????????????????????????????????????????? | | ?????????????????????????????????????????????????? | | ?????????????????????????????????????????????????? | | ?????????????????????????????????????????????????? | | ?????????????????????????????????????????????????? | | ?????????????????????????????????????????????????? | | ?????????????????????????????????????????????????? | | ?????????????????????????????????????????????????? | | ?????????????????????????????????????????????????? | | ?????????????????????????????????????????????????? | | ?????????????????????????????????????????????????? | | ?????????????????????????????????????????????????? | | ?????????????????????????????????????????????????? | | ?????????????????????????????????????????????????? | | ?????????????????????????????????????????????????? | | ?????????????????????????????????????????????????? | | ?????????????????????????????????????????????????? | | ?????????????????????????????????????????????????? | | ?????????????????????????????????????????????????? | +----------------------------------------------------+ Best States ------------- Heat Dissipation 38 Energy Generation 15 Energy Capacity 275 Matter Stores 300 Matter Capacity 300 Sight Range 18 Terrain Scan Density 10 Armor Coverage 225 Evasion (%) 50 Item Schematics ----------------- None Robot Schematics ------------------ None Fabricated ------------ Nothing Alien Tech Used ----------------- None Achievements -------------- Storm Trooper Challenges ------------ None Game ------ Seed HardcellHelicalRegenerator Manual? 0 Play Time 00:43:36 Cumulative 2.0 hours Start 2021.10.26 @ 00:10:36 End 2021.10.26 @ 01:12:53 Sessions 1 Manual Loads 0 Difficulty Rogue Special Mode None Game No. 2 Rogue 2 Adventurer 0 Explorer 0 Win Type - Total 0 Types 0/0/0/0/0/0/0/0/0 Lore% 0 Gallery% 2 Achievement% 1 Wizard Run 0 Options --------- ASCII 0 Keyboard 0 Movement Numpad Keybinds 0 Fullscreen 1 Font 18/SmallcapsGlow Map View 76x50 Tactical HUD 0 Map Filters NONE Filters NONE Steam 0 RUN: d2826f83-9f89-4b10-b752-69c7a614946c